Workbook

Sheet Pasiūlymas
A2: PIRKIMO SĄLYGŲ PRIEDAS "PASIŪLYMŲ FORMA"
A4: SUVENYRAI, APDOVANOJIMAI
A6: Kam: | B6: Šalčininkų rajono savivaldybės administracija
A8: Data: | B8: 2021.03.02
A9: Nr.:
A10: Vieta: | B10: Vilnius
A12: Tiekėjo pavadinimas / Ūkio subjektų grupės nariai: | C12: UAB MYLIDA
A13: Tiekėjo kodas (-ai): | C13: 125765596
A14: Tiekėjo adresas (-ai): | C14: Savanorių pr. 12, 03116 Vilnius, Lietuva
A15: Tiekėjo PVM mokėtojo kodas(-ai): | C15: LT257655917
A16: Tiekėjo / Ūkio subjektų grupės atsakingo partnerio sąskaitos numeris, banko pavadinimas ir banko kodas (-ai): | C16: LUMINOR BANK LT304010049500916557
A17: Asmens atsakingo už pasiūlymą vardas, pavardė: | C17: Prekybos direktorė Katažyna Rakovska
A18: Asmens atsakingo už pasiūlymą telefono numeris, el. pašto adresas: | C18: 852130962 info@mylida.lt
A19: Tiekėjo / Ūkio subjektų grupės, laimėjimo atveju, pasirašančio sutartį asmens vardas, pavardė, pareigos: | C19: L.e.p. Direktorius Marian Tareilis
A20: Tiekėjo / Ūkio subjektų grupės, laimėjimo atveju, už sutarties vykdymą atsakingo asmens vardas, pavardė, telefono numeris, elektroninio pašto adresas: | C20: Prekybos direktorė Katažyna Rakovska 860574107 katazyna@mylida.lt
A21: (1) Tiekėjo / Ūkio subjektų grupės narių, (2) ūkio subjektų, kurių pajėgumais remiamasi, ir (3) jei pašalinimo pagrindai taikomi visiems subtiekėjams - subtiekėjų, kolegialaus priežiūros organo (Stebėtojų tarybos) ir (ar) kolegialaus valdymo organo (Valdybos) narių sąrašas (jei sudaryta) ir (ar) asmuo, kuriam suteikti VPĮ 46 str. 2 d. 2 p. numatyti įgaliojimai | C21: L.e.p. Direktorius Marian Tareilis
A23: Tiekėjo patvirtinimai:
A24: 1. Šiuo pasiūlymu pažymime, kad sutinkame su visomi pirkimo sąlygomis, nustatytomis:
A25: 1.1. viešojo pirkimo dokumentuose
A26: 1.2. kituose pirkimo dokumentuose (jų paaiškinimuose, papildymuose).
A27: 2. Patvirtiname, kad informacija ir duomenys, pateikti pasiūlyme, yra teisingi ir apima viską, ko reikia tinkamam sutarties įvykdymui
A28: 3. Patvirtiname, kad jei pasiūlyme nenurodyti kolegialaus priežiūros/valdymo organų nariai, šie organai juridiniuose asmenyse nėra sudaryti (taikoma, kai pirkimo dokumentuose nustatyti pašalinimo pagrindai).
A29: 4. Pasiūlymas galioja iki termino, nustatyto pirkimo dokumentuose.
A32: Tiekėjo pasiūlymas:
A33: Nr. | B33: Pavadinimas | C33: Kiekis | D33: Mato vienetas | E33: Kaina be PVM, Eur | F33: Suma be PVM, Eur
A34: 1.1. | B34: Antspaudo užrašo gamyba (užsakymai vienetiniai, pagal poreikį)
A35: 1.1.1. | B35: 24x7 | C35: 1 | D35: vnt. | E35: 4.31 | F35: =IF(ISBLANK(E35),"", PRODUCT(C35,E35)) -> 4.31
A36: 1.1.2. | B36: 36x12 | C36: 1 | D36: vnt. | E36: 5.5 | F36: =IF(ISBLANK(E36),"", PRODUCT(C36,E36)) -> 5.5
A37: 1.1.3. | B37: 45x17 | C37: 1 | D37: vnt. | E37: 6.46 | F37: =IF(ISBLANK(E37),"", PRODUCT(C37,E37)) -> 6.46
A38: 1.1.4. | B38: d. 30 mm | C38: 1 | D38: vnt. | E38: 6.46 | F38: =IF(ISBLANK(E38),"", PRODUCT(C38,E38)) -> 6.46
A39: 1.1.5. | B39: d. 40 mm | C39: 1 | D39: vnt. | E39: 7.8 | F39: =IF(ISBLANK(E39),"", PRODUCT(C39,E39)) -> 7.8
A40: 1.1. | B40: Antspaudo gamyba su korpusu (užsakymai vienetiniai pagal poreikį)
A41: 1.1.1. | B41: 24x7 | C41: 1 | D41: vnt. | E41: 8.85 | F41: =IF(ISBLANK(E41),"", PRODUCT(C41,E41)) -> 8.85
A42: 1.1.2. | B42: 36x12 | C42: 1 | D42: vnt. | E42: 9.33 | F42: =IF(ISBLANK(E42),"", PRODUCT(C42,E42)) -> 9.33
A43: 1.1.3. | B43: 45x17 | C43: 1 | D43: vnt. | E43: 11.73 | F43: =IF(ISBLANK(E43),"", PRODUCT(C43,E43)) -> 11.73
A44: 1.1.4. | B44: d.30mm | C44: 1 | D44: vnt. | E44: 14.84 | F44: =IF(ISBLANK(E44),"", PRODUCT(C44,E44)) -> 14.84
A45: 1.1.5. | B45: d.40 mm | C45: 1 | D45: vnt. | E45: 18.43 | F45: =IF(ISBLANK(E45),"", PRODUCT(C45,E45)) -> 18.43
A46: 1.1. | B46: Informacinių kortelių gamyba(užsakoma pagal poreikį, min. užsakymo kiekis 100 vnt.)
A47: 1.1.1. | B47: Skaitmenine spauda ,4+O, popierius 280 gr. 100vnt | C47: 1 | D47: vnt. | E47: 0.12 | F47: =IF(ISBLANK(E47),"", PRODUCT(C47,E47)) -> 0.12
A48: 1.1.2. | B48: Skaitmenine spauda,4+4,popierius 280gr. 100 vnt | C48: 1 | D48: vnt. | E48: 0.17 | F48: =IF(ISBLANK(E48),"", PRODUCT(C48,E48)) -> 0.17
A49: 1.1.3. | B49: Šilkografine spauda 1+O 100 vnt | C49: 1 | D49: vnt. | E49: 0.17 | F49: =IF(ISBLANK(E49),"", PRODUCT(C49,E49)) -> 0.17
A50: 1.1.4. | B50: Šilkografija spauda 1+1 100 vnt | C50: 1 | D50: lapas | E50: 0.19 | F50: =IF(ISBLANK(E50),"", PRODUCT(C50,E50)) -> 0.19
A51: 1.1.5. | B51: šilkografine spauda 4+0 100vnt | C51: 1 | D51: vnt. | E51: 0.35 | F51: =IF(ISBLANK(E51),"", PRODUCT(C51,E51)) -> 0.35
A52: 1.4. | B52: Blankų, pažymų spauda ( popierius 80 gr.cm)
A53: 1.4.1. | B53: 1000vnt,1+0 | C53: 1 | D53: vnt. | E53: 0.04 | F53: =IF(ISBLANK(E53),"", PRODUCT(C53,E53)) -> 0.04
A54: 1.4.2. | B54: 2000 vnt,1+0 | C54: 1 | D54: vnt. | E54: 0.03 | F54: =IF(ISBLANK(E54),"", PRODUCT(C54,E54)) -> 0.03
A55: 1.4.3. | B55: 1000 vnt,1+1 | C55: 1 | D55: vnt. | E55: 0.05 | F55: =IF(ISBLANK(E55),"", PRODUCT(C55,E55)) -> 0.05
A56: 1.4.4. | B56: 2000 vnt,1+1 | C56: 1 | D56: vnt. | E56: 0.04 | F56: =IF(ISBLANK(E56),"", PRODUCT(C56,E56)) -> 0.04
A57: 1.5. | B57: Laminavimas, ( užsakymai vienetiniai pagal poreikį)
A58: 1.5.1. | B58: iDarbuotojų pažymėjimus | C58: 1 | D58: vnt. | E58: 0.24 | F58: =IF(ISBLANK(E58),"", PRODUCT(C58,E58)) -> 0.24
A59: 1.5.2. | B59: A4 formato | C59: 1 | D59: vnt. | E59: 0.49 | F59: =IF(ISBLANK(E59),"", PRODUCT(C59,E59)) -> 0.49
A60: 1.5.3. | B60: A3 formatas | C60: 1 | D60: vnt. | E60: 0.98 | F60: =IF(ISBLANK(E60),"", PRODUCT(C60,E60)) -> 0.98
A61: 1.5.4. | B61: Didelių formatų laminavimas, kaina už 1 m2 | C61: 1 | D61: vnt. | E61: 7.36 | F61: =IF(ISBLANK(E61),"", PRODUCT(C61,E61)) -> 7.36
A62: 1.6. | B62: Aplankai
A63: 1.6.1. | B63: Aplankai ( popierius 300gcm, spauda 1+0,su užlenkimais) 1000 vnt | C63: 1 | D63: vnt. | E63: 0.43 | F63: =IF(ISBLANK(E63),"", PRODUCT(C63,E63)) -> 0.43
A64: 1.6.2. | B64: Aplankai ( popierius 300gcm, spauda 4+0,su užlenkimais) 1000 vnt | C64: 1 | D64: vnt. | E64: 1.3 | F64: =IF(ISBLANK(E64),"", PRODUCT(C64,E64)) -> 1.3
A65: 1.7. | B65: Sieniiniai kalendoriai 3- jų dalių
A66: 1.7.1. | B66: Sieniniai kalendoriai, 3-jų dalių,viršelis laminuotas, lapeliai 2+0 90 gcm popierius 300 vnt | C66: 1 | D66: vnt. | E66: 3.84 | F66: =IF(ISBLANK(E66),"", PRODUCT(C66,E66)) -> 3.84
A67: 1.8. | B67: Užrašai ant bloknotų, darbo knygu 1+0
A68: 1.8.1. | B68: Užrašai ant bloknotų, darbo knygu 1+0 100 vnt | C68: 1 | D68: vnt. | E68: 0.3 | F68: =IF(ISBLANK(E68),"", PRODUCT(C68,E68)) -> 0.3
A69: 1.9. | B69: Balti puodeliai su užrašų,
A70: 1.9.1. | B70: talpa 300ml,spaudos dydis 35x35 m,spauda 1+0 50vnt | C70: 1 | D70: vnt. | E70: 3.47 | F70: =IF(ISBLANK(E70),"", PRODUCT(C70,E70)) -> 3.47
A71: 1.10. | B71: Užrašai ant tušinukų
A72: 1.10.1. | B72: Plastikiniai tušinukai su spauda 1+0 300 vnt | C72: 1 | D72: vnt. | E72: 0.36 | F72: =IF(ISBLANK(E72),"", PRODUCT(C72,E72)) -> 0.36
A73: 1.11. | B73: Įdeklai į atvirutės
A74: 1.11.1. | B74: Įdeklai į atvirutės ( 180x90mm, kalkinis popierius) | C74: 1 | D74: vnt. | E74: 0.21 | F74: =IF(ISBLANK(E74),"", PRODUCT(C74,E74)) -> 0.21
A75: 1.12. | B75: Padėkos raštai
A76: 1.12.1. | B76: Popierius 300 gcm, skaitmena 100 vnt | C76: 1 | D76: vnt. | E76: 0.85 | F76: =IF(ISBLANK(E76),"", PRODUCT(C76,E76)) -> 0.85
A77: 1.13. | B77: Graviravimas ant įvairių paviršių
A78: 1.13.1. | B78: Graviravimas, užsakymai vienetiniai pagal poreikį,kaina už 1 cm2 | C78: 1 | D78: vnt. | E78: 1 | F78: =IF(ISBLANK(E78),"", PRODUCT(C78,E78)) -> 1
E79: Suma be PVM | F79: =IF((SUMPRODUCT(--(F35:F78=""))>13), "", SUM(F35:F78)) -> 115.7 | G79: =IF((SUMPRODUCT(--(F35:F78=""))>13), "Neužpildytos visų objektų kainos", "") -> 
E80: PVM suma | F80: 24.3
E81: Suma su PVM | F81: =IF(ISBLANK(F80), "", SUM(F79:F80)) -> 140

Sheet Subtiekėjai ir priedai
A2: Ūkio subjektai (įskaitant kvazisubtiekėjus - fiziniai asmenys, kuriuos ketinama įdarbinti pirkimo laimėjimo atveju), kurių pajėgumais tiekėjas remiasi, kad atitiktų keliamus kvalifikacijos reikalavimus:
A5: Pavadinimas* | C5: Kodas, adresas | F5: Perduodama veikla | I5: Perduodamos veiklos dalis nuo visos pirkimo sutarties (Eur arba %) | K5: Kval. Reikalavimo Nr.
A17: Subtiekėjams / subteikėjams / subrangovams numatomos perduoti veiklos (privaloma nurodyti) ir šių ūkio subjektų pavadinimai (jei žinomi):
A19: Pavadinimas | C19: Kodas, adresas | F19: Perduodama veikla* | I19: Perduodamos veiklos dalis nuo visos pirkimo sutarties (Eur arba %)
A31: * Pildyti tuomet, jei pirkimo sutarties vykdymui bus pasitelkti subtiekėjai. Jeigu tiekėjas nenurodo subtiekėjų, laikoma, kad vykdant pirkimo sutartį jų nebus pasitelkiama.
A33: Kartu su pasiūlymu pateikiami šie dokumentai:
A35: Nr. | B35: Dokumento pavadinimas | H35: Dokumentas yra konfidencialus? Taip/Ne
A36: 1 | B36: Jungtinės veiklos sutarties kopija (jei taikoma)
A37: 2 | B37: Subtiekimo sutartis, ketinimų protokolas, preliminarios sutartys ar kiti dokumentai, patvirtinantys, kad laimėjus pirkimą tiekėjui bus prieinami kitų ūkio subjektų ištekliai (jei pasitelkiami kvalifikacijos atitikimui)
A48: Pasiūlyme nurodyta Prekės kaina, išskyrus jos sudedamąsias dalis, subtiekėjai, taip pat kita informacija, kuri teisės aktų nustatyta tvarka turi būti skelbiama arba kitokiu būdu viešai prieinama visuomenei, nėra laikoma konfidencialia informacija. Konfidencialią informaciją sudaro, visų pirma, komercinė (gamybinė) paslaptis ir konfidencialieji pasiūlymų aspektai. Informacija, kurią viešai skelbti įpareigoja Lietuvos Respublikos įstatymai, negali būti tiekėjo nurodoma kaip konfidenciali, todėl, tiekėjui nurodžius tokią informaciją kaip konfidencialią, perkančioji organizacija turi teisę ją skelbti. Jei tiekėjas nenurodo konfidencialios informacijos, laikoma, kad konfidencialios informacijos tiekėjo pasiūlyme nėra. Vadovaujantis Informacijos viešinimo Centrinėje viešųjų pirkimų informacinėje sistemoje tvarkos aprašu, patvirtintu Viešųjų pirkimų tarnybos direktoriaus 2017 m. birželio 19 d. įsakymu Nr. 1S-91 „Dėl Informacijos viešinimo Centrinėje viešųjų pirkimų informacinėje sistemoje tvarkos aprašo patvirtinimo“, perkančioji organizacija laimėjusio dalyvio pasiūlymą, išskyrus informaciją, kurią tiekėjas nurodė kaip konfidencialią, paskelbs CVP IS.
A51: Tiekėjo arba jo įgalioto asmens pareigų pavadinimas:
A53: Pasirašančio asmens vardas ir pavardė:
A100: 4522 2021-03-02 13:38:51
